[Event "71st RUS-ch Superfinal Women 2021"]
[Site "Ufa"]
[Date "2021.10.20"]
[Round "11.4"]
[White "Galliamova, Alisa"]
[Black "Guseva, Marina"]
[Result "1/2-1/2"]
[ECO "E15"]
[WhiteElo "2421"]
[BlackElo "2394"]
[Annotator "ChessBase"]
[PlyCount "65"]
[EventDate "2021.10.09"]
[EventType "tourn"]
[EventCountry "RUS"]
[SourceTitle "playchess.com"]
[Source "ChessBase"]
[SourceQuality "1"]
[TimeControl "40/5400+30:1800+30"]

1. d4 {[%emt 0:00:03]} Nf6 {[%emt 0:00:03]} 2. c4 {[%emt 0:00:24]} e6 {[%emt 0:
00:04]} 3. Nf3 {[%emt 0:00:05]} b6 {[%emt 0:00:03]} 4. g3 {[%emt 0:00:07]} Ba6
{[%emt 0:00:04]} 5. b3 {[%emt 0:00:06]} Bb4+ {[%emt 0:00:03]} 6. Bd2 {[%emt 0:
00:07]} Be7 {[%emt 0:00:04]} 7. Nc3 {[%emt 0:00:11]} O-O {[%emt 0:00:24]} 8.
Bg2 {[%emt 0:04:44]} c6 {[%emt 0:00:04]} 9. O-O {[%emt 0:00:53]} d5 {[%emt 0:
00:06]} 10. Bf4 {[%emt 0:01:51]} Nbd7 {[%emt 0:14:11]} 11. Qd3 {[%emt 0:00:52]}
Rc8 {[%emt 0:04:56]} 12. Rac1 {[%emt 0:00:28]} dxc4 {[%emt 0:10:23]} 13. bxc4 {
[%emt 0:00:06]} Nd5 {[%emt 0:00:17]} 14. Bd2 {[%emt 0:32:32]} Nb4 {[%emt 0:40:
39]} 15. Qb1 {[%emt 0:00:36]} Bxc4 {[%emt 0:00:22]} 16. Nd1 {[%emt 0:04:21]}
Bxe2 {[%emt 0:00:05]} 17. Bxb4 {[%emt 0:00:06]} Bxb4 {[%emt 0:00:14]} 18. Qxb4
{[%emt 0:00:07]} Bxf1 {[%emt 0:00:05]} 19. Bxf1 {[%emt 0:09:12]} c5 {[%emt 0:
00:03]} 20. Qa4 {[%emt 0:12:30]} cxd4 {[%emt 0:00:05]} 21. Rxc8 {[%emt 0:00:15]
} Qxc8 {[%emt 0:00:03]} 22. Nxd4 {[%emt 0:01:46]} Nc5 {[%emt 0:01:56]} 23. Qc4
{[%emt 0:01:16]} Rd8 {[%emt 0:01:15]} 24. Nc3 {[%emt 0:03:38]} Qd7 {[%emt 0:02:
29]} 25. Nf3 {[%emt 0:01:41]} a6 {[%emt 0:06:17]} 26. a4 {[%emt 0:06:14]} Qc6 {
[%emt 0:05:43]} 27. Be2 {[%emt 0:02:36]} Rc8 {[%emt 0:01:31]} 28. Kg2 {[%emt 0:
09:08]} h6 {[%emt 0:07:51]} 29. h4 {[%emt 0:00:44]} Qb7 {[%emt 0:03:23]} 30.
Qb4 {[%emt 0:03:42]} Qc6 {[%emt 0:00:27]} 31. Qc4 {[%emt 0:00:23]} Qb7 {
[%emt 0:00:36]} 32. Qb4 {[%emt 0:00:05]} Qc6 {[%emt 0:00:53]} 33. Qc4 1/2-1/2

[Event "71st RUS-ch Superfinal Women 2021"]
[Site "Ufa"]
[Date "2021.10.20"]
[Round "11.5"]
[White "Bodnaruk, Anastasia"]
[Black "Girya, Olga"]
[Result "1/2-1/2"]
[ECO "C50"]
[WhiteElo "2415"]
[BlackElo "2410"]
[Annotator "ChessBase"]
[PlyCount "141"]
[EventDate "2021.10.09"]
[EventType "tourn"]
[EventCountry "RUS"]
[SourceTitle "playchess.com"]
[Source "ChessBase"]
[SourceQuality "1"]
[TimeControl "40/5400+30:1800+30"]

1. e4 {[%emt 0:00:02]} e5 {[%emt 0:00:04]} 2. Nf3 {[%emt 0:00:06]} Nc6 {
[%emt 0:00:05]} 3. Bc4 {[%emt 0:00:16]} Bc5 {[%emt 0:00:13]} 4. d3 {[%emt 0:00:
20]} Nf6 {[%emt 0:00:16]} 5. Bg5 {[%emt 0:00:21]} h6 {[%emt 0:01:04]} 6. Bh4 {
[%emt 0:00:10]} d6 {[%emt 0:00:09]} 7. c3 {[%emt 0:00:48]} a6 {[%emt 0:00:17]}
8. a4 {[%emt 0:00:32]} Ba7 {[%emt 0:00:35]} 9. Nbd2 {[%emt 0:00:38]} Qe7 {
[%emt 0:00:40]} 10. O-O {[%emt 0:02:03]} g5 {[%emt 0:01:51]} 11. Bg3 {[%emt 0:
00:05]} Nd7 {[%emt 0:00:53]} 12. b4 {[%emt 0:01:04]} Nf8 {[%emt 0:04:59]} 13.
d4 {[%emt 0:09:55]} Ng6 {[%emt 0:09:50]} 14. b5 {[%emt 0:00:33]} Na5 {[%emt 0:
00:14]} 15. h3 {[%emt 0:02:37]} h5 {[%emt 0:01:48]} 16. Re1 {[%emt 0:04:26]} g4
{[%emt 0:07:53]} 17. hxg4 {[%emt 0:00:19]} hxg4 {[%emt 0:00:23]} 18. Nh2 {
[%emt 0:00:17]} exd4 {[%emt 0:27:35]} 19. cxd4 {[%emt 0:02:32]} Bxd4 {[%emt 0:
01:33]} 20. bxa6 {[%emt 0:02:52]} Be5 {[%emt 0:08:37]} 21. axb7 {[%emt 0:15:17]
} Bxb7 {[%emt 0:00:58]} 22. Bb5+ {[%emt 0:01:38]} c6 {[%emt 0:00:14]} 23. Be2 {
[%emt 0:01:15]} Bxg3 {[%emt 0:03:24]} 24. fxg3 {[%emt 0:01:27]} Qe5 {[%emt 0:
09:12]} 25. Ndf1 {[%emt 0:10:38]} Qc5+ {[%emt 0:01:26]} 26. Kh1 {[%emt 0:00:05]
} Ne5 {[%emt 0:06:45]} 27. Rc1 {[%emt 0:02:43]} Qa3 {[%emt 0:00:04]} 28. Bxg4 {
[%emt 0:05:25]} Nac4 {[%emt 0:04:47]} 29. Rb1 {[%emt 0:14:09]} Bc8 {[%emt 0:01:
17]} 30. Bxc8 {[%emt 0:06:13]} Rxc8 {[%emt 0:00:01]} 31. Qd4 {[%emt 0:00:32]}
Qxa4 {[%emt 0:04:22]} 32. Kg1 {[%emt 0:01:51]} Qa5 {[%emt 0:00:53]} 33. Rec1 {
[%emt 0:02:40]} Qc5 {[%emt 0:00:52]} 34. Qxc5 {[%emt 0:00:18]} dxc5 {[%emt 0:
00:01]} 35. Nf3 {[%emt 0:02:34]} Ke7 {[%emt 0:00:40]} 36. Rb7+ {[%emt 0:03:53]}
Kf6 {[%emt 0:00:08]} 37. Nxe5 {[%emt 0:04:32]} Nxe5 {[%emt 0:00:02]} 38. Ne3 {
[%emt 0:00:10]} Rb8 {[%emt 0:02:49]} 39. Rc7 {[%emt 0:01:48]} Rb4 {[%emt 0:01:
07]} 40. Rf1+ {[%emt 0:00:00]} Kg6 {[%emt 0:00:00]} 41. Nf5 {[%emt 0:10:02]}
Rxe4 {[%emt 0:12:48]} 42. Ne7+ {[%emt 0:03:45]} Kg5 {[%emt 0:04:21]} 43. Nxc6 {
[%emt 0:00:46]} Re8 {[%emt 0:06:12]} 44. Nxe5 {[%emt 0:01:14]} R4xe5 {[%emt 0:
00:49]} 45. Rcxf7 {[%emt 0:03:19]} Re1 {[%emt 0:00:35]} 46. R7f5+ {[%emt 0:02:
36]} Kg4 {[%emt 0:00:07]} 47. Rxc5 {[%emt 0:00:24]} Rxf1+ {[%emt 0:00:05]} 48.
Kxf1 {[%emt 0:00:02]} Kxg3 {[%emt 0:00:11]} 49. Rg5+ {[%emt 0:00:39]} Kf4 {
[%emt 0:00:34]} 50. Rg7 {[%emt 0:00:06]} Ra8 {[%emt 0:00:14]} 51. Kg1 {[%emt 0:
00:10]} Rb8 {[%emt 0:00:17]} 52. Rh7 {[%emt 0:01:17]} Kg3 {[%emt 0:00:17]} 53.
Rh3+ {[%emt 0:00:05]} Kg4 {[%emt 0:00:03]} 54. Kh2 {[%emt 0:00:19]} Rc8 {
[%emt 0:00:22]} 55. Rh7 {[%emt 0:00:37]} Rc2 {[%emt 0:00:16]} 56. Rg7+ {
[%emt 0:01:06]} Kh4 {[%emt 0:00:07]} 57. Rd7 {[%emt 0:00:12]} Ra2 {[%emt 0:01:
17]} 58. Rd4+ {[%emt 0:00:05]} Kg5 {[%emt 0:00:04]} 59. Kh3 {[%emt 0:00:20]}
Ra3+ {[%emt 0:00:07]} 60. g3 {[%emt 0:00:03]} Rb3 {[%emt 0:00:25]} 61. Rd5+ {
[%emt 0:00:06]} Kg6 {[%emt 0:00:15]} 62. Kh4 {[%emt 0:00:11]} Rb4+ {[%emt 0:00:
08]} 63. g4 {[%emt 0:00:02]} Rb6 {[%emt 0:00:19]} 64. Rd8 {[%emt 0:00:32]} Ra6
{[%emt 0:00:26]} 65. Rg8+ {[%emt 0:00:24]} Kh7 {[%emt 0:00:09]} 66. Rg5 {
[%emt 0:00:34]} Kh6 {[%emt 0:00:05]} 67. Rd5 {[%emt 0:00:10]} Kg6 {[%emt 0:00:
05]} 68. Rd4 {[%emt 0:00:13]} Rb6 {[%emt 0:00:10]} 69. g5 {[%emt 0:01:00]} Ra6
{[%emt 0:00:06]} 70. Kg4 {[%emt 0:00:05]} Rb6 {[%emt 0:00:06]} 71. Rf4 {
[%emt 0:00:06]} 1/2-1/2

[Event "71st RUS-ch Superfinal Women 2021"]
[Site "Ufa"]
[Date "2021.10.20"]
[Round "11.6"]
[White "Gunina, Valentina"]
[Black "Shuvalova, Polina"]
[Result "1/2-1/2"]
[ECO "A58"]
[WhiteElo "2462"]
[BlackElo "2509"]
[Annotator "ChessBase"]
[PlyCount "74"]
[EventDate "2021.10.09"]
[EventType "tourn"]
[EventCountry "RUS"]
[SourceTitle "playchess.com"]
[Source "ChessBase"]
[SourceQuality "1"]
[TimeControl "40/5400+30:1800+30"]

1. d4 {[%emt 0:00:05]} Nf6 {[%emt 0:00:03]} 2. c4 {[%emt 0:00:05]} c5 {[%emt 0:
00:06]} 3. d5 {[%emt 0:00:29]} b5 {[%emt 0:00:04]} 4. cxb5 {[%emt 0:00:29]} a6
{[%emt 0:00:06]} 5. bxa6 {[%emt 0:00:24]} g6 {[%emt 0:00:14]} 6. Nc3 {[%emt 0:
00:22]} Bg7 {[%emt 0:00:06]} 7. e4 {[%emt 0:01:08]} O-O {[%emt 0:00:07]} 8. Nf3
{[%emt 0:00:33]} Qa5 {[%emt 0:00:12]} 9. Bd3 {[%emt 0:03:15]} Nxd5 {[%emt 0:00:
54]} 10. exd5 {[%emt 0:10:46]} Bxc3+ {[%emt 0:00:25]} 11. bxc3 {[%emt 0:00:39]}
Qxc3+ {[%emt 0:00:05]} 12. Qd2 {[%emt 0:00:11]} Qxa1 {[%emt 0:00:06]} 13. O-O {
[%emt 0:00:05]} Qg7 {[%emt 0:06:23]} 14. Re1 {[%emt 0:09:21]} f6 {[%emt 0:05:
39]} 15. h4 {[%emt 0:11:42]} d6 {[%emt 0:05:17]} 16. h5 {[%emt 0:01:40]} Nd7 {
[%emt 0:01:52]} 17. hxg6 {[%emt 0:14:29]} hxg6 {[%emt 0:00:49]} 18. Qc2 {
[%emt 0:01:16]} Ne5 {[%emt 0:25:19]} 19. Nxe5 {[%emt 0:00:51]} fxe5 {[%emt 0:
00:31]} 20. Bxg6 {[%emt 0:00:28]} Rf6 {[%emt 0:00:51]} 21. Be4 {[%emt 0:00:46]}
Kf7 {[%emt 0:18:25]} 22. Re3 {[%emt 0:01:25]} Rf4 {[%emt 0:00:39]} 23. Rb3 {
[%emt 0:05:37]} Rg4 {[%emt 0:03:23]} 24. Qe2 {[%emt 0:07:51]} Rxa6 {[%emt 0:09:
11]} 25. Rb8 {[%emt 0:01:20]} Ra4 {[%emt 0:07:07]} 26. f3 {[%emt 0:01:27]}
Rgxe4 {[%emt 0:04:00]} 27. fxe4 {[%emt 0:00:40]} Bg4 {[%emt 0:00:42]} 28. Qf1+
{[%emt 0:04:52]} Kg6 {[%emt 0:00:05]} 29. Qe1 {[%emt 0:01:44]} Kf7 {[%emt 0:05:
39]} 30. Qh4 {[%emt 0:02:20]} Rxe4 {[%emt 0:01:26]} 31. Rb7 {[%emt 0:00:42]}
Ke8 {[%emt 0:02:42]} 32. Bg5 {[%emt 0:02:49]} Bf3 {[%emt 0:01:20]} 33. Qh3 {
[%emt 0:01:15]} Bg4 {[%emt 0:01:13]} 34. Qh4 {[%emt 0:01:28]} Bf3 {[%emt 0:00:
03]} 35. Qh3 {[%emt 0:04:57]} Bg4 {[%emt 0:00:02]} 36. Qh4 {[%emt 0:00:28]} Bf3
{[%emt 0:00:05]} 37. Qh3 Rf4 1/2-1/2